fUSD/lending_fUSD_20250513
["ID","MTS","AMOUNT","RATE_DAILY","PERIOD"]
[360939606,1747159835579,-406.16968731,0.00010958,2]
[360939607,1747159835588,-553.17,0.00010958,2]
[360939608,1747159835598,-400.0,0.00010958,2]
[360939609,1747159835607,-2771.94,0.00010958,2]
[360939610,1747159835617,-400.0,0.00010958,2]
[360939611,1747159835626,-400.0,0.00010958,2]
[360939612,1747159835635,-400.0,0.00010958,2]
[360939613,1747159835644,-400.0,0.00010958,2]
[360939614,1747159835653,-547.99,0.00010958,2]
[360939615,1747159835663,-2640.23,0.00010958,2]
[360939616,1747159835676,-400.0,0.00010958,2]
[360939617,1747159835685,-1191.42,0.00010958,2]
[360939618,1747159835695,-253.67836046,0.00010958,2]
[360939619,1747159835705,-400.0,0.00010958,2]
[360939620,1747159835714,-400.0,0.00010958,2]
[360939621,1747159835723,-1798.17,0.00010958,2]
[360939622,1747159835732,-400.0,0.00010958,2]
[360939623,1747159835742,-3074.15,0.00010958,2]
[360939624,1747159835751,-400.0,0.00010958,2]
[360939625,1747159835760,-1909.44,0.00010958,2]
[360939626,1747159835769,-1043.95,0.00010958,2]
[360939627,1747159835778,-400.0,0.00010958,2]
[360939628,1747159835788,-828.17,0.00010958,2]
[360939629,1747159835797,-2209.39,0.00010958,2]
[360939630,1747159835806,-400.0,0.00010958,2]
[360939631,1747159835815,-2113.1,0.00010958,2]
[360939632,1747159835825,-400.0,0.00010958,2]
[360939633,1747159835834,-1584.79,0.00010958,2]
[360939634,1747159835844,-894.32,0.00010958,2]
[360939635,1747159835853,-2266.23,0.00010958,2]
[360939636,1747159835862,-400.0,0.00010958,2]
[360939637,1747159835871,-403.62,0.00010958,2]
[360939638,1747159835881,-400.0,0.00010958,2]
[360939639,1747159835890,-400.0,0.00010958,2]
[360939640,1747159835899,-166.07955422,0.00010958,2]
[360939641,1747159835909,-423.72,0.00010958,2]
[360939642,1747159835919,-400.0,0.00010958,2]
[360939643,1747159835930,-1157.78,0.00010958,2]
[360939644,1747159835939,-448.59,0.00010958,2]
[360939645,1747159835949,-2334.67,0.00010958,2]
[360939646,1747159835959,-2166.25,0.00010958,2]
[360939647,1747159835969,-3592.14,0.00010958,2]
[360939648,1747159835979,-414.75,0.00010958,2]
[360939649,1747159835989,-151.68,0.00010958,2]
[360939650,1747159835998,-400.0,0.00010958,2]
[360939651,1747159836009,-576.56,0.00010958,2]
[360939652,1747159836019,-400.0,0.00010958,2]
[360939653,1747159836029,-400.0,0.00010958,2]
[360939654,1747159836039,-400.0,0.00010958,2]
[360939655,1747159836049,-400.0,0.00010958,2]
[360939656,1747159836059,-400.0,0.00010958,2]
[360939658,1747159836068,-400.0,0.00010958,2]
[360939660,1747159836077,-259.24890906,0.00010958,2]
[360939662,1747159836091,-400.0,0.00010958,2]
[360939664,1747159836101,-529.13,0.00010958,2]
[360939666,1747159836111,-400.0,0.00010958,2]
[360939668,1747159836120,-500.19,0.00010958,2]
[360939670,1747159836130,-400.0,0.00010958,2]
[360939672,1747159836139,-400.0,0.00010958,2]
[360939675,1747159836159,-400.0,0.00010958,2]
[360939678,1747159836172,-400.0,0.00010958,2]
[360939681,1747159836181,-1411.28,0.00010958,2]
[360939684,1747159836192,-534.86,0.00010958,2]
[360939686,1747159836201,-445.9,0.00010958,2]
[360939688,1747159836210,-400.0,0.00010958,2]
[360939690,1747159836220,-706.58,0.00010958,2]
[360939691,1747159836230,-400.0,0.00010958,2]
[360939693,1747159836240,-5073.20173679,0.00010958,2]
[360939695,1747159836249,-1060.09,0.00010958,2]
[360939697,1747159836259,-400.0,0.00010958,2]
[360939699,1747159836268,-440.85,0.00010958,2]
[360939701,1747159836278,-400.0,0.00010958,2]
[360939703,1747159836287,-400.0,0.00010958,2]
[360939705,1747159836297,-400.0,0.00010958,2]
[360939707,1747159836306,-402.63,0.00010958,2]
[360939709,1747159836315,-400.0,0.00010958,2]
[360939711,1747159836325,-400.0,0.00010958,2]
[360939713,1747159836335,-400.0,0.00010958,2]
[360939715,1747159836344,-400.0,0.00010958,2]
[360939717,1747159836353,-400.0,0.00010958,2]
[360939719,1747159836363,-400.0,0.00010958,2]
[360939721,1747159836372,-400.0,0.00010958,2]
[360939723,1747159836382,-400.0,0.00010958,2]
[360939725,1747159836391,-400.0,0.00010958,2]
[360939727,1747159836401,-400.0,0.00010958,2]
[360939729,1747159836410,-400.0,0.00010958,2]
[360939731,1747159836422,-400.0,0.00010958,2]
[360939733,1747159836431,-400.0,0.00010958,2]
[360939735,1747159836440,-400.0,0.00010958,2]
[360939737,1747159836451,-400.0,0.00010958,2]
[360939739,1747159836461,-785.11,0.00010958,2]
[360939740,1747159836470,-782.86,0.00010958,2]
[360939742,1747159836480,-508.12,0.00010958,2]
[360939744,1747159836489,-400.0,0.00010958,2]
[360939746,1747159836498,-792.31,0.00010958,2]
[360939748,1747159836509,-400.0,0.00010958,2]
[360939750,1747159836519,-507.26,0.00010958,2]
[360939752,1747159836528,-1373.03,0.00010958,2]
[360939754,1747159836538,-400.0,0.00010958,2]
[360939756,1747159836547,-400.0,0.00010958,2]
[360939758,1747159836557,-400.0,0.00010958,2]
[360939760,1747159836566,-400.0,0.00010958,2]
[360939762,1747159836576,-400.0,0.00010958,2]
[360939764,1747159836585,-439.37,0.00010958,2]
[360939766,1747159836594,-400.0,0.00010958,2]
[360939768,1747159836604,-401.93569056,0.00010958,2]
[360939770,1747159836613,-835.87,0.00010958,2]
[360939772,1747159836623,-255.93564056,0.00010958,2]
[360939774,1747159836634,-400.0,0.00010958,2]
[360939776,1747159836644,-404.1,0.00010958,2]
[360939778,1747159836654,-1203.29,0.00010958,2]
[360939780,1747159836663,-400.0,0.00010958,2]
[360939782,1747159836676,-705.65,0.00010958,2]
[360939784,1747159836685,-400.0,0.00010958,2]
[360939786,1747159836695,-400.0,0.00010958,2]
[360939788,1747159836704,-513.79,0.00010958,2]
[360939790,1747159836714,-400.0,0.00010958,2]
[360939792,1747159836724,-400.0,0.00010958,2]
[360939794,1747159836733,-476.49047723,0.00010958,2]
[360939796,1747159836743,-871.93,0.00010958,2]
[360939798,1747159836752,-400.0,0.00010958,2]
[360939800,1747159836762,-400.0,0.00010958,2]
[360939807,1747159836988,-400.0,0.00010958,2]
[360939808,1747159836998,-400.0,0.00010958,2]
[360939809,1747159837009,-400.0,0.00010958,2]
[360939810,1747159837019,-400.0,0.00010958,2]
[360939811,1747159837029,-535.51,0.00010958,2]
[360939812,1747159837039,-356.1649995,0.00010958,2]
[360939813,1747159837049,-400.0,0.00010958,2]
[360939814,1747159837058,-400.0,0.00010958,2]
[360939815,1747159837067,-446.88,0.00010958,2]
[360939817,1747159837077,-400.0,0.00010958,2]
[360939819,1747159837086,-400.0,0.00010958,2]
[360939821,1747159837096,-400.0,0.00010958,2]
[360939823,1747159837105,-786.26,0.00010958,2]
[360939825,1747159837115,-400.0,0.00010958,2]
[360939827,1747159837126,-400.0,0.00010958,2]
[360939829,1747159837135,-801.16,0.00010958,2]
[360939831,1747159837149,-400.0,0.00010958,2]
[360939833,1747159837159,-400.0,0.00010958,2]
[360939835,1747159837170,-400.0,0.00010958,2]
[360939837,1747159837180,-400.0,0.00010958,2]
[360939839,1747159837192,-1120.22,0.00010958,2]
[360939841,1747159837202,-1841.1,0.00010958,2]
[360939843,1747159837212,-522.01,0.00010958,2]
[360939845,1747159837222,-5481.66,0.00010958,2]
[360939847,1747159837232,-400.0,0.00010958,2]
[360939849,1747159837242,-952.91,0.00010958,2]
[360939851,1747159837251,-589.31,0.00010958,2]
[360939853,1747159837261,-400.0,0.00010958,2]
[360939855,1747159837271,-440.12,0.00010958,2]
[360939857,1747159837280,-689.79,0.00010958,2]
[360939859,1747159837290,-400.0,0.00010958,2]
[360939861,1747159837300,-1040.35,0.00010958,2]
[360939863,1747159837310,-400.0,0.00010958,2]
[360939865,1747159837319,-400.0,0.00010958,2]
[360939867,1747159837329,-400.0,0.00010958,2]
[360939869,1747159837339,-817.93445393,0.00010958,2]
[360939873,1747159837368,-302.0,0.00010958,2]
[360939875,1747159837380,-856.5879686,0.00010958,2]
[360939877,1747159837392,-856.32757747,0.00010958,2]
[360939879,1747159837402,-400.0,0.00010958,2]
[360939881,1747159837411,-722.75,0.00010958,2]
[360939883,1747159837423,-837.08,0.00010958,2]
[360939885,1747159837434,-418.45,0.00010958,2]
[360939887,1747159837445,-400.0,0.00010958,2]
[360939889,1747159837454,-1518.61,0.00010958,2]
[360939891,1747159837464,-538.57,0.00010958,2]
[360939894,1747159837474,-346.19049141,0.00010958,2]
[360939896,1747159837483,-2035.72,0.00010958,2]
[360939899,1747159837492,-452.37,0.00010958,2]
[360939901,1747159837502,-400.0,0.00010958,2]
[360939903,1747159837512,-504.22,0.00010958,2]
[360939905,1747159837521,-699.02,0.00010958,2]
[360939907,1747159837532,-1636.63,0.00010958,2]
[360939909,1747159837542,-400.0,0.00010958,2]
[360939911,1747159837551,-494.98,0.00010958,2]
[360939914,1747159837561,-1883.29,0.00010958,2]
[360939916,1747159837571,-400.0,0.00010958,2]
[360939918,1747159837580,-2000.0,0.00010958,2]
[360939920,1747159837598,-400.0,0.00010958,2]
[360939922,1747159837620,-400.0,0.00010958,2]
[360939924,1747159837630,-610.23,0.00010958,2]
[360939926,1747159837639,-768.25,0.00010958,2]
[360939928,1747159837649,-1014.11,0.00010958,2]
[360939930,1747159837659,-768.75,0.00010958,2]
[360939932,1747159837668,-400.0,0.00010958,2]
[360939934,1747159837681,-620.02,0.00010958,2]
[360939936,1747159837691,-1271.95,0.00010958,2]
[360939938,1747159837701,-400.0,0.00010958,2]
[360939940,1747159837711,-400.0,0.00010958,2]
[360939942,1747159837722,-756.59,0.00010958,2]
[360939944,1747159837732,-935.97,0.00010958,2]
[360939946,1747159837741,-400.0,0.00010958,2]
[360939948,1747159837751,-400.0,0.00010958,2]
[360939950,1747159837761,-1412.1,0.00010958,2]
[360939952,1747159837770,-539.94,0.00010958,2]
[360939954,1747159837780,-1632.7,0.00010958,2]
[360939956,1747159837790,-400.0,0.00010958,2]
[360939958,1747159837799,-871.79,0.00010958,2]
[360939960,1747159837809,-400.0,0.00010958,2]
[360939962,1747159837819,-451.47,0.00010958,2]
[360939964,1747159837828,-400.0,0.00010958,2]
[360939966,1747159837839,-560.27,0.00010958,2]
[360939968,1747159837848,-400.0,0.00010958,2]
[360939970,1747159837858,-2068.68,0.00010958,2]
[360939972,1747159837868,-400.0,0.00010958,2]
[360939974,1747159837878,-570.27,0.00010958,2]
[360939976,1747159837887,-444.85,0.00010958,2]
[360939978,1747159837897,-967.47,0.00010958,2]
[360939980,1747159837906,-400.0,0.00010958,2]
[360939982,1747159837916,-669.93,0.00010958,2]
[360939984,1747159837929,-1036.32,0.00010958,2]
[360939986,1747159837939,-400.0,0.00010958,2]
[360939988,1747159837948,-331.23687926,0.00010958,2]
[360939990,1747159837958,-680.61,0.00010958,2]
[360939992,1747159837967,-4665.34,0.00010958,2]
[360939995,1747159837977,-400.0,0.00010958,2]
[360939998,1747159837986,-1314.16,0.00010958,2]
[360940001,1747159837996,-4183.88,0.00010958,2]
[360940002,1747159838007,-326.77336224,0.00010958,2]
[360940005,1747159838020,-73.22663776,0.00010958,2]
[360940007,1747159838030,-400.0,0.00010958,2]
[360940009,1747159838039,-786.38,0.00010958,2]
[360940011,1747159838048,-400.0,0.00010958,2]
[360940013,1747159838057,-547.25,0.00010958,2]
[360940015,1747159838066,-579.54,0.00010958,2]
[360940017,1747159838076,-2046.23,0.00010958,2]
[360940019,1747159838085,-1255.33,0.00010958,2]
[360940021,1747159838095,-577.34,0.00010958,2]
[360940023,1747159838104,-9519.31,0.00010958,2]
[360940025,1747159838113,-834.73,0.00010958,2]
[360940027,1747159838123,-324.19783285,0.00010958,2]
[360940029,1747159838132,-400.0,0.00010958,2]
[360940031,1747159838142,-400.0,0.00010958,2]
[360940033,1747159838155,-140.24980059,0.00010958,2]
[360940035,1747159838167,-1206.45019941,0.00010958,2]
[360940037,1747159838179,-2754.3,0.00010958,2]
[360940039,1747159838188,-400.0,0.00010958,2]
[360940041,1747159838198,-869.49157811,0.00010958,2]
[360940043,1747159838209,-2300.90000001,0.00010958,2]
[360940045,1747159838221,-1693.6999999,0.00010958,2]
[360940047,1747159838232,-5392.18842198,0.00010958,2]
[360940049,1747159838242,-400.0,0.00010958,2]
[360940051,1747159838251,-487.25,0.00010958,2]
[360940053,1747159838261,-400.0,0.00010958,2]
[360940055,1747159838270,-400.0,0.00010958,2]
[360940057,1747159838280,-400.0,0.00010958,2]
[360940059,1747159838290,-2145.85,0.00010958,2]
[360940061,1747159838299,-778.75,0.00010958,2]
[360940063,1747159838310,-1086.29,0.00010958,2]
[360940065,1747159838319,-712.61,0.00010958,2]
[360940067,1747159838328,-400.0,0.00010958,2]
[360940069,1747159838337,-1146.85,0.00010958,2]
[360940071,1747159838347,-400.0,0.00010958,2]
[360940073,1747159838356,-427.04,0.00010958,2]
[360940075,1747159838366,-1787.73,0.00010958,2]
[360940077,1747159838376,-400.0,0.00010958,2]
[360940079,1747159838385,-587.09,0.00010958,2]
[360940081,1747159838395,-400.0,0.00010958,2]
[360940083,1747159838404,-400.0,0.00010958,2]
[360940085,1747159838414,-2676.84,0.00010958,2]
[360940087,1747159838425,-936.8,0.00010958,2]
[360940089,1747159838437,-538.65,0.00010958,2]
[360940091,1747159838450,-570.54,0.00010958,2]
[360940093,1747159838462,-671.91,0.00010958,2]
[360940095,1747159838472,-400.0,0.00010958,2]
[360940097,1747159838481,-1004.59,0.00010958,2]
[360940099,1747159838491,-583.74,0.00010958,2]
[360940101,1747159838501,-400.0,0.00010958,2]
[360940103,1747159838510,-400.0,0.00010958,2]
[360940105,1747159838520,-628.15,0.00010958,2]
[360940107,1747159838529,-409.42,0.00010958,2]
[360940109,1747159838541,-400.0,0.00010958,2]
[360940111,1747159838551,-10626.02,0.00010958,2]
[360940113,1747159838560,-400.0,0.00010958,2]
[360940115,1747159838570,-515.12,0.00010958,2]
[360940117,1747159838580,-6049.69,0.00010958,2]
[360940119,1747159838589,-400.0,0.00010958,2]
[360940121,1747159838599,-1033.11,0.00010958,2]
[360940123,1747159838607,-400.0,0.00010958,2]
[360940125,1747159838617,-400.0,0.00010958,2]
[360940127,1747159838627,-437.19,0.00010958,2]
[360940129,1747159838637,-378.84626583,0.00010958,2]
[360940132,1747159838656,-21.15373417,0.00010958,2]
[360940134,1747159838665,-569.55,0.00010958,2]
[360940136,1747159838678,-467.47,0.00010958,2]
[360940138,1747159838687,-796.72626583,0.00010958,2]
[360940140,1747159838698,-598.30258062,0.00010958,2]
[360940143,1747159838710,-869.93115355,0.00010958,2]
[360940145,1747159838719,-492.23273645,0.00010958,2]
[360940147,1747159838731,-303.07726355,0.00010958,2]
[360940149,1747159838740,-400.0,0.00010958,2]
[360940151,1747159838749,-405.13,0.00010958,2]
[360940153,1747159838760,-1277.12,0.00010958,2]
[360940155,1747159838770,-400.0,0.00010958,2]
[360940157,1747159838780,-1585.22,0.00010958,2]
[360940159,1747159838790,-400.0,0.00010958,2]
[360940161,1747159838799,-252.45809199,0.00010958,2]
[360940163,1747159838811,-147.54190801,0.00010958,2]
[360940165,1747159838821,-138.43799626,0.00010958,2]
[360940167,1747159838833,-2445.75038882,0.00010958,2]
[360940170,1747159838844,-742.41129901,0.00010958,2]
[360940172,1747159838855,-5702.74,0.00010958,2]
[360940174,1747159838867,-450.0,0.00010958,2]
[360940178,1747159838896,-1003.84031591,0.00010958,2]
[360940180,1747159838906,-400.0,0.00010958,2]
[360940182,1747159838915,-843.23,0.00010958,2]
[360940184,1747159838927,-1106.58,0.00010958,2]
[360940186,1747159838936,-400.0,0.00010958,2]
[360940188,1747159838947,-400.0,0.00010958,2]
[360940190,1747159838956,-413.28,0.00010958,2]
[360940192,1747159838966,-400.0,0.00010958,2]
[360940194,1747159838976,-400.0,0.00010958,2]
[360940196,1747159838986,-400.0,0.00010958,2]
[360940198,1747159838995,-1973.13,0.00010958,2]
[360940200,1747159839007,-400.0,0.00010958,2]
[360940203,1747159839018,-400.0,0.00010958,2]
[360940204,1747159839027,-565.33,0.00010958,2]
[360940206,1747159839036,-1087.57,0.00010958,2]
[360940208,1747159839045,-400.0,0.00010958,2]
[360940210,1747159839055,-2020.68,0.00010958,2]
[360940212,1747159839064,-456.90317389,0.00010958,2]
[360940214,1747159839073,-400.0,0.00010958,2]
[360940216,1747159839082,-400.0,0.00010958,2]
[360940218,1747159839092,-279.50290511,0.00010958,2]
[360940220,1747159839101,-686.06,0.00010958,2]
[360940222,1747159839110,-400.0,0.00010958,2]
[360940224,1747159839119,-400.0,0.00010958,2]
[360940226,1747159839128,-400.0,0.00010958,2]
[360940228,1747159839138,-400.0,0.00010958,2]
[360940230,1747159839151,-2493.43,0.00010958,2]
[360940232,1747159839161,-1680.0,0.00010958,2]
[360940234,1747159839171,-483.53,0.00010958,2]
[360940236,1747159839180,-400.0,0.00010958,2]
[360940238,1747159839190,-400.0,0.00010958,2]
[360940240,1747159839199,-523.64,0.00010958,2]
[360940242,1747159839209,-2179.19,0.00010958,2]
[360940244,1747159839219,-400.0,0.00010958,2]
[360940246,1747159839228,-933.31,0.00010958,2]
[360940248,1747159839237,-448.16,0.00010958,2]
[360940250,1747159839247,-1454.44,0.00010958,2]
[360940252,1747159839256,-495.63,0.00010958,2]
[360940254,1747159839265,-669.67,0.00010958,2]
[360940256,1747159839275,-407.59,0.00010958,2]
[360940257,1747159839285,-2557.8,0.00010958,2]
[360940259,1747159839294,-733.19,0.00010958,2]
[360940261,1747159839303,-1323.75,0.00010958,2]
[360940263,1747159839312,-1387.03,0.00010958,2]
[360940265,1747159839321,-101544.96,0.00010958,2]
[360940267,1747159839331,-639.94,0.00010958,2]
[360940269,1747159839340,-1956.5,0.00010958,2]
[360940271,1747159839349,-400.0,0.00010958,2]
[360940273,1747159839359,-400.0,0.00010958,2]
[360940275,1747159839368,-447.02,0.00010958,2]
[360940277,1747159839377,-400.0,0.00010958,2]
[360940279,1747159839386,-400.0,0.00010958,2]
[360940281,1747159839395,-400.0,0.00010958,2]
[360940290,1747159839467,-400.0,0.00010958,2]
[360940292,1747159839476,-2181.62,0.00010958,2]
[360940294,1747159839485,-500.0,0.00010959,2]
[360940296,1747159839495,-3842.0,0.00010959,2]
[360940298,1747159839503,-1173.0,0.00010959,2]
[360940300,1747159839513,-200.63,0.00010959,2]
[360940302,1747159839522,-500.0,0.00010959,2]
[360940304,1747159839531,-500.0,0.00010959,2]
[360940306,1747159839540,-500.0,0.00010959,2]
[360940308,1747159839550,-500.0,0.00010959,2]
[360940310,1747159839559,-500.0,0.00010959,2]
[360940312,1747159839568,-500.0,0.00010959,2]
[360940314,1747159839577,-500.0,0.00010959,2]
[360940317,1747159839586,-500.0,0.00010959,2]
[360940319,1747159839596,-500.0,0.00010959,2]
[360940321,1747159839605,-500.0,0.00010959,2]
[360940324,1747159839614,-500.0,0.00010959,2]
[360940326,1747159839623,-500.0,0.00010959,2]
[360940328,1747159839632,-500.0,0.00010959,2]
[360940330,1747159839641,-500.0,0.00010959,2]
[360940332,1747159839650,-500.0,0.00010959,2]
[360940334,1747159839659,-500.0,0.00010959,2]
[360940336,1747159839669,-150.0,0.00010959,2]
[360940338,1747159839678,-500.0,0.00010959,2]
[360940340,1747159839687,-500.0,0.00010959,2]
[360940341,1747159839696,-500.0,0.00010959,2]
[360940343,1747159839705,-500.0,0.00010959,2]
[360940345,1747159839715,-347.35124825,0.00010959,2]
[360940347,1747159839725,-150.0,0.00010969,2]
[360940349,1747159839737,-500.0,0.00010973,2]
[360940351,1747159839747,-166.30409871,0.00010973,2]
[360940353,1747159839756,-1000.0,0.00010983,2]
[360940356,1747159839766,-255.0,0.00010983,2]
[360940357,1747159839776,-150.0,0.0001099,2]
[360940359,1747159839785,-187.06682968,0.0001099,2]
[360940361,1747159839794,-187.06682968,0.0001099,2]
[360940363,1747159839804,-187.06682968,0.0001099,2]
[360940365,1747159839814,-434.04,0.00010993,2]
[360940367,1747159839823,-17035.42,0.00010993,2]
[360940369,1747159839832,-5007.84,0.00010993,2]
[360940371,1747159839841,-10008.76,0.00010993,2]
[360940373,1747159839850,-617.21,0.00010993,2]
[360940375,1747159839860,-3156.51,0.00010993,2]
[360940377,1747159839869,-4071.95,0.00010993,2]
[360940379,1747159839879,-13186.5900833,0.00010994,2]
[360940381,1747159839889,-1000.0,0.00010996,2]
[360940383,1747159839899,-300.0,0.00010999,2]
[360940385,1747159839908,-300.0,0.00010999,2]
[360940387,1747159839917,-300.0,0.00010999,2]
[360940389,1747159839928,-300.0,0.00010999,2]
[360940391,1747159839938,-300.0,0.00010999,2]
[360940393,1747159839947,-630.0,0.00010999,2]
[360940395,1747159839957,-219.14087377,0.00011,2]
[360940397,1747159839967,-132016.73506646,0.00011,2]
[360940562,1747159841836,-153.55680447,0.00010892,2]
[360940564,1747159841845,-369.50723553,0.00010958,2]
[360940566,1747159841856,-30.49276447,0.00010958,2]
[360940568,1747159841865,-247.10223553,0.00010958,2]
[360940570,1747159841877,-460.76776447,0.00010958,2]
[360940572,1747159841886,-946.15,0.00010958,2]
[360940574,1747159841895,-364.33543519,0.00010958,2]
[360940577,1747159841915,-879.0,0.0001089,2]
[360940579,1747159841925,-343.56000018,0.00010958,2]
[360940581,1747159841936,-101.24456463,0.00010958,2]
[360940583,1747159841946,-676.8,0.00010958,2]
[360940585,1747159841956,-9904.72280305,0.00011,2]
[360940589,1747159841983,-463.28746673,0.00011,2]
[360940592,1747159842003,-1563.46598488,0.00011,2]
[360940594,1747159842014,-584.78514729,0.00011,2]
[360940601,1747159842077,-153.55680447,0.000109,2]
[360940603,1747159842087,-189.67894752,0.00011,2]
[360940641,1747159842459,-500.0,0.00011,2]
[360940651,1747159842547,-222174.34050461,0.00011,2]
[360940654,1747159842571,-2606.90000001,0.00011,2]
[360940657,1747159842584,-4452.49717128,0.00011,2]
[360940678,1747159842791,-1352.25,0.00011,2]
[360940680,1747159842804,-1729.85740307,0.00011,2]
[360940682,1747159842816,-273.12259432,0.00011,2]
[360940684,1747159842827,-375.712,0.00011,2]
[360940686,1747159842840,-924.99469098,0.00011,2]
[360940689,1747159842858,-9594.82267057,0.00011,2]
[360940691,1747159842870,-307.96775578,0.00011,2]
[360940693,1747159842882,-547.0,0.00011,2]
[360940696,1747159842894,-2910.02301602,0.00011,2]
[360940698,1747159842906,-5669.31040505,0.00011,2]
[360940700,1747159842919,-5029887.20692695,0.00011,2]
[360940879,1747159844469,-1527.0,0.000109,2]
[360940881,1747159844480,-492.65,0.00010958,2]
[360940883,1747159844490,-637.14,0.00010958,2]
[360940885,1747159844500,-400.0,0.00010958,2]
[360940887,1747159844513,-400.0,0.00010958,2]
[360940889,1747159844526,-36203.24882731,0.00011,2]
[360940891,1747159844538,-577.13,0.00011,2]
[360940894,1747159844553,-15280.11589186,0.00011,2]
[360940912,1747159844686,-302.0,0.00010958,2]
[360940916,1747159844722,-276.24081424,0.00010958,2]
[360942136,1747159858764,-239.97918576,0.00010958,2]
[360942138,1747159858774,-884976.94460158,0.00011,2]
[360942140,1747159858784,-432.9585783,0.00011,2]
[360942141,1747159858794,-4666658.72875634,0.00011,2]
[360942143,1747159858804,-151.0,0.00011,2]
[360942145,1747159858813,-7863750.58095901,0.00011,2]
[360942147,1747159858822,-151.0,0.00011,2]
[360942149,1747159858832,-6509785.55222187,0.00011,2]
[360942151,1747159858842,-151.031569,0.00011,2]
[360942153,1747159858852,-151.0,0.00011,2]
[360942155,1747159858862,-151.0,0.00011,2]
[360942157,1747159858871,-155.227064,0.00011,2]
[360942159,1747159858882,-151.0,0.00011,2]
[360942161,1747159858891,-151.0,0.00011,2]
[360942163,1747159858902,-151.0,0.00011,2]
[360942165,1747159858912,-151.0,0.00011,2]
[360942167,1747159858922,-151.0,0.00011,2]
[360942169,1747159858933,-151.0,0.00011,2]
[360942171,1747159858943,-151.0,0.00011,2]
[360942173,1747159858953,-230.947154,0.00011,2]
[360942175,1747159858963,-151.0,0.00011,2]
[360942177,1747159858973,-151.0,0.00011,2]
[360942179,1747159858982,-151.0,0.00011,2]
[360942181,1747159858992,-151.0,0.00011,2]
[360942183,1747159859002,-242.116731,0.00011,2]
[360942185,1747159859011,-242.116731,0.00011,2]
[360942187,1747159859021,-242.116731,0.00011,2]
[360942188,1747159859032,-242.116731,0.00011,2]
[360942190,1747159859042,-242.116731,0.00011,2]
[360942192,1747159859052,-242.116731,0.00011,2]
[360942194,1747159859062,-151.0,0.00011,2]
[360942196,1747159859072,-151.0,0.00011,2]
[360942198,1747159859083,-151.0,0.00011,2]
[360942200,1747159859092,-151.0,0.00011,2]
[360942202,1747159859102,-151.0,0.00011,2]
[360942204,1747159859112,-151.0,0.00011,2]
[360942206,1747159859122,-151.0,0.00011,2]
[360942208,1747159859131,-152.67642,0.00011,2]
[360942210,1747159859141,-151.0,0.00011,2]
[360942212,1747159859153,-151.0,0.00011,2]
[360942214,1747159859163,-151.0,0.00011,2]
[360942216,1747159859172,-151.0,0.00011,2]
[360942218,1747159859182,-151.0,0.00011,2]
[360942220,1747159859192,-151.0,0.00011,2]
[360942222,1747159859202,-152.71022,0.00011,2]
[360942224,1747159859212,-151.616054,0.00011,2]